fUSD/lending_fUSD_20240403
["ID","MTS","AMOUNT","RATE_DAILY","PERIOD"]
[321426894,1712182305296,-500.0,0.00055068,120]
[321426895,1712182305306,-500.0,0.00055068,120]
[321426896,1712182305316,-500.0,0.00055068,120]
[321426897,1712182305325,-500.0,0.00055068,120]
[321426898,1712182305335,-500.0,0.00055068,120]
[321426899,1712182305345,-500.0,0.00055068,120]
[321426900,1712182305355,-574.24,0.00055068,120]
[321426901,1712182305364,-6759.44,0.00055068,120]
[321426902,1712182305374,-500.0,0.00055068,120]
[321426903,1712182305383,-2045.92,0.00055068,120]
[321426904,1712182305392,-1189.01,0.00055068,120]
[321426905,1712182305401,-500.0,0.00055068,120]
[321426906,1712182305411,-500.0,0.00055068,120]
[321426907,1712182305420,-500.0,0.00055068,120]
[321426908,1712182305429,-3000.0,0.00055068,120]
[321426909,1712182305439,-736.57,0.00055068,120]
[321426910,1712182305451,-500.0,0.00055068,30]
[321426911,1712182305460,-1026.27,0.00055068,120]
[321426912,1712182305468,-500.0,0.00055068,120]
[321426913,1712182305478,-500.0,0.00055068,120]
[321426914,1712182305487,-1008.12,0.00055068,120]
[321426915,1712182305497,-5498.04,0.00055068,120]
[321426916,1712182305506,-500.0,0.00055068,120]
[321426917,1712182305516,-500.0,0.00055068,120]
[321426918,1712182305526,-500.0,0.00055068,120]
[321426919,1712182305535,-500.0,0.00055068,120]
[321426920,1712182305545,-261.32231101,0.00055068,120]
[321426921,1712182305554,-500.0,0.00055068,120]
[321426922,1712182305563,-905.59,0.00055068,2]
[321426923,1712182305573,-151.65769508,0.00055068,120]
[321426924,1712182305582,-500.0,0.00055068,120]
[321426925,1712182305592,-651.77,0.00055068,120]
[321426926,1712182305605,-680.33,0.00055068,120]
[321426927,1712182305615,-562.61234703,0.00055068,120]
[321426928,1712182305624,-225.08643337,0.00055068,120]
[321426929,1712182305633,-1318.99,0.00055068,120]
[321426930,1712182305644,-464.16052769,0.00055068,120]
[321426931,1712182305654,-625.04,0.00055068,120]
[321426932,1712182305663,-869.59,0.00055068,120]
[321426933,1712182305673,-500.0,0.00055068,120]
[321426934,1712182305683,-884.21,0.00055068,120]
[321426935,1712182305694,-500.0,0.00055068,120]
[321426936,1712182305703,-16118.97,0.00055068,120]
[321426937,1712182305712,-500.0,0.00055068,120]
[321426938,1712182305722,-500.0,0.00055068,120]
[321426939,1712182305731,-4639.27,0.00055068,120]
[321426940,1712182305740,-500.0,0.00055068,120]
[321426941,1712182305750,-1510.17,0.00055068,120]
[321426942,1712182305759,-612.31,0.00055068,120]
[321426943,1712182305769,-5757.53,0.00055068,120]
[321426944,1712182305779,-500.0,0.00055068,120]
[321426945,1712182305788,-1665.67,0.00055068,120]
[321426946,1712182305797,-519.25,0.00055068,120]
[321426947,1712182305807,-1123.52,0.00055068,120]
[321426948,1712182305817,-510.95987601,0.00055068,120]
[321426949,1712182305826,-1067.74,0.00055068,120]
[321426950,1712182305836,-1129.11,0.00055068,120]
[321426951,1712182305845,-500.0,0.00055068,120]
[321426952,1712182305854,-513.47934847,0.00055068,120]
[321426953,1712182305863,-500.0,0.00055068,120]
[321426954,1712182305873,-820.77,0.00055068,120]
[321426955,1712182305882,-1482.99,0.00055068,120]
[321426956,1712182305892,-5284.66,0.00055068,120]
[321426957,1712182305901,-500.0,0.00055068,120]
[321426958,1712182305911,-301.65252592,0.00055068,120]
[321426959,1712182305921,-1031.33,0.00055068,120]
[321426960,1712182305930,-6341.12,0.00055068,120]
[321426961,1712182305939,-634.4,0.00055068,120]
[321426962,1712182305950,-2231.2,0.00055068,120]
[321426963,1712182305959,-500.0,0.00055068,120]
[321426964,1712182305969,-1584.76,0.00055068,120]
[321426965,1712182305978,-500.0,0.00055068,120]
[321426966,1712182305988,-500.0,0.00055068,120]
[321426967,1712182305997,-773.21,0.00055068,120]
[321426968,1712182306006,-500.0,0.00055068,120]
[321426969,1712182306016,-500.0,0.00055068,120]
[321426970,1712182306025,-541.88,0.00055068,120]
[321426971,1712182306034,-590.98,0.00055068,120]
[321426972,1712182306043,-2029.16,0.00055068,120]
[321426973,1712182306052,-500.0,0.00055068,120]
[321426974,1712182306062,-639.31,0.00055068,120]
[321426975,1712182306071,-500.0,0.00055068,120]
[321426976,1712182306081,-500.0,0.00055068,120]
[321426977,1712182306090,-500.0,0.00055068,120]
[321426978,1712182306099,-500.0,0.00055068,120]
[321426979,1712182306109,-2905.31,0.00055068,120]
[321426980,1712182306119,-500.0,0.00055068,120]
[321426981,1712182306128,-500.0,0.00055068,120]
[321426982,1712182306137,-500.0,0.00055068,120]
[321426983,1712182306146,-191.47483542,0.00055068,120]
[321426984,1712182306155,-500.0,0.00055068,120]
[321426985,1712182306164,-1182.15,0.00055068,120]
[321426986,1712182306174,-263.92014178,0.00055068,120]
[321426987,1712182306183,-500.0,0.00055068,120]
[321426988,1712182306194,-500.0,0.00055068,120]
[321426989,1712182306204,-500.0,0.00055068,120]
[321426990,1712182306213,-500.0,0.00055068,120]
[321426991,1712182306223,-154.04987054,0.00055068,120]
[321426992,1712182306233,-377.24760351,0.00055068,120]
[321426993,1712182306242,-504.85,0.00055068,120]
[321426994,1712182306252,-1522.27,0.00055068,7]
[321426995,1712182306261,-500.0,0.00055068,120]
[321426996,1712182306273,-3000.0,0.00055068,120]
[321426997,1712182306283,-1565.32,0.00055068,120]
[321426998,1712182306293,-619.44,0.00055068,120]
[321426999,1712182306302,-500.0,0.00055068,120]
[321427000,1712182306312,-509.05771683,0.00055068,120]
[321427001,1712182306321,-500.0,0.00055068,120]
[321427002,1712182306331,-2380.48,0.00055068,120]
[321427003,1712182306340,-1373.12,0.00055068,120]
[321427004,1712182306349,-154.70387398,0.00055068,120]
[321427005,1712182306359,-523.23000406,0.00055068,120]
[321427006,1712182306368,-1541.65,0.00055068,120]
[321427007,1712182306426,-563.41,0.00055068,120]
[321427008,1712182306436,-515.24969627,0.00055068,120]
[321427009,1712182306447,-500.0,0.00055068,120]
[321427010,1712182306456,-500.0,0.00055068,120]
[321427011,1712182306466,-500.0,0.00055068,120]
[321427012,1712182306476,-153.69704536,0.00055068,120]
[321427013,1712182306485,-500.0,0.00055068,120]
[321427014,1712182306495,-604.59,0.00055068,120]
[321427015,1712182306505,-500.0,0.00055068,120]
[321427016,1712182306514,-869.55,0.00055068,120]
[321427017,1712182306524,-500.0,0.00055068,120]
[321427018,1712182306534,-2515.17,0.00055068,120]
[321427019,1712182306544,-500.0,0.00055068,120]
[321427020,1712182306554,-1251.7,0.00055068,120]
[321427021,1712182306564,-500.0,0.00055068,120]
[321427022,1712182306574,-500.0,0.00055068,120]
[321427023,1712182306584,-500.0,0.00055068,120]
[321427024,1712182306595,-4948.94,0.00055068,120]
[321427025,1712182306608,-2810.56,0.00055068,120]
[321427026,1712182306617,-52357.43,0.00055068,120]
[321427027,1712182306627,-504.54,0.00055068,120]
[321427028,1712182306638,-786.26,0.00055068,120]
[321427029,1712182306648,-534.99,0.00055068,120]
[321427030,1712182306657,-500.0,0.00055068,120]
[321427031,1712182306666,-168.9760808,0.00055068,120]
[321427032,1712182306676,-500.0,0.00055068,120]
[321427033,1712182306685,-505.09269206,0.00055068,120]
[321427034,1712182306698,-500.0,0.00055068,120]
[321427035,1712182306707,-154.38813497,0.00055068,120]
[321427036,1712182306716,-643.75,0.00055068,120]
[321427037,1712182306727,-2329.88,0.00055068,120]
[321427038,1712182306737,-515.84603647,0.00055068,120]
[321427039,1712182306748,-1544.06,0.00055068,120]
[321427040,1712182306758,-500.0,0.00055068,120]
[321427041,1712182306768,-500.0,0.00055068,120]
[321427042,1712182306779,-500.0,0.00055068,120]
[321427043,1712182306789,-500.0,0.00055068,120]
[321427044,1712182306801,-8632.12,0.00055068,120]
[321427045,1712182306811,-4415.02,0.00055068,120]
[321427046,1712182306822,-550.87,0.00055068,120]
[321427047,1712182306832,-576.72012065,0.00055068,120]
[321427048,1712182306844,-851.69,0.00055068,120]
[321427049,1712182306855,-3139.95,0.00055068,120]
[321427050,1712182306866,-500.0,0.00055068,120]
[321427051,1712182306876,-500.0,0.00055068,120]
[321427052,1712182306887,-500.0,0.00055068,120]
[321427053,1712182306897,-1156.95,0.00055068,120]
[321427054,1712182306908,-500.0,0.00055068,120]
[321427055,1712182306918,-600.06,0.00055068,120]
[321427056,1712182306928,-500.0,0.00055068,120]
[321427057,1712182306939,-727.71,0.00055068,120]
[321427058,1712182306952,-2830.73,0.00055068,120]
[321427059,1712182306964,-500.0,0.00055068,120]
[321427060,1712182306974,-4317.35,0.00055068,120]
[321427061,1712182306985,-500.0,0.00055068,120]
[321427062,1712182306996,-5781.72,0.00055068,120]
[321427063,1712182307006,-500.0,0.00055068,120]
[321427064,1712182307017,-1166.59,0.00055068,120]
[321427065,1712182307027,-1165.33,0.00055068,120]
[321427066,1712182307037,-500.0,0.00055068,120]
[321427067,1712182307048,-3614.27,0.00055068,120]
[321427068,1712182307059,-500.28,0.00055068,120]
[321427069,1712182307069,-500.0,0.00055068,120]
[321427070,1712182307079,-2671.64,0.00055068,120]
[321427071,1712182307089,-1000.0,0.00055068,120]
[321427072,1712182307099,-523.84939388,0.00055068,120]
[321427073,1712182307109,-500.0,0.00055068,120]
[321427074,1712182307120,-1853.14,0.00055068,120]
[321427075,1712182307129,-500.0,0.00055068,120]
[321427076,1712182307139,-1035.92,0.00055068,120]
[321427077,1712182307150,-2958.64,0.00055068,120]
[321427078,1712182307160,-428.47316905,0.00055068,120]
[321427079,1712182307170,-500.0,0.00055068,120]
[321427080,1712182307180,-21125.14879214,0.00055068,120]
[321427081,1712182308024,-2110.70120786,0.00055068,120]
[321427082,1712182308038,-571.26,0.00055068,120]
[321427083,1712182308052,-500.0,0.00055068,120]
[321427084,1712182308065,-1218.61,0.00055068,120]
[321427085,1712182308078,-500.0,0.00055068,120]
[321427086,1712182308092,-500.0,0.00055068,120]
[321427087,1712182308105,-500.0,0.00055068,120]
[321427088,1712182308118,-13561.16,0.00055068,120]
[321427089,1712182308131,-1928.79,0.00055068,120]
[321427090,1712182308143,-500.0,0.00055068,120]
[321427091,1712182308157,-730.5,0.00055068,120]
[321427092,1712182308169,-500.0,0.00055068,120]
[321427093,1712182308182,-500.0,0.00055068,120]
[321427094,1712182308193,-500.0,0.00055068,120]
[321427095,1712182308207,-500.0,0.00055068,120]
[321427096,1712182308221,-538.34822019,0.00055068,120]
[321427097,1712182308233,-4823.72,0.00055068,120]
[321427098,1712182308245,-500.0,0.00055068,120]
[321427099,1712182308256,-500.0,0.00055068,120]
[321427100,1712182308269,-500.0,0.00055068,120]
[321427101,1712182308282,-901.12,0.00055068,120]
[321427102,1712182308294,-1839.73,0.00055068,120]
[321427103,1712182308307,-1891.12,0.00055068,120]
[321427104,1712182308323,-500.0,0.00055068,120]
[321427105,1712182308336,-1273.38,0.00055068,120]
[321427106,1712182308349,-500.0,0.00055068,120]
[321427107,1712182308363,-500.0,0.00055068,120]
[321427108,1712182308377,-520.22027547,0.00055068,120]
[321427109,1712182308388,-743.85,0.00055068,120]
[321427110,1712182308402,-1571.1,0.00055068,120]
[321427111,1712182308415,-500.0,0.00055068,120]
[321427112,1712182308428,-1166.4,0.00055068,120]
[321427113,1712182308440,-6476.21,0.00055068,120]
[321427114,1712182308453,-677.74,0.00055068,120]
[321427115,1712182308465,-2307.59,0.00055068,120]
[321427116,1712182308477,-500.0,0.00055068,120]
[321427117,1712182308489,-500.0,0.00055068,120]
[321427118,1712182308501,-4214.7,0.00055068,120]
[321427119,1712182308512,-500.0,0.00055068,120]
[321427120,1712182308524,-533.22443984,0.00055068,120]
[321427121,1712182308537,-500.0,0.00055068,120]
[321427122,1712182308550,-1094.92,0.00055068,120]
[321427123,1712182308561,-509.59029529,0.00055068,120]
[321427124,1712182308573,-2401.85,0.00055068,120]
[321427125,1712182308586,-500.0,0.00055068,120]
[321427126,1712182308600,-536.99412286,0.00055068,120]
[321427127,1712182308614,-1624.59,0.00055068,120]
[321427128,1712182308626,-40194.92,0.00055068,120]
[321427129,1712182308636,-2341.82,0.00055068,120]
[321427130,1712182308646,-500.0,0.00055068,120]
[321427131,1712182308657,-555.26615965,0.00055068,120]
[321427132,1712182308667,-500.0,0.00055068,120]
[321427133,1712182308677,-500.0,0.00055068,120]
[321427134,1712182308686,-1048.4,0.00055068,120]
[321427135,1712182308696,-18725.44,0.00055068,120]
[321427136,1712182308705,-3301.52,0.00055068,120]
[321427137,1712182308714,-3160.42,0.00055068,120]
[321427138,1712182308723,-2618.75,0.00055068,120]
[321427139,1712182308733,-1634.63,0.00055068,120]
[321427140,1712182308742,-500.0,0.00055068,120]
[321427141,1712182308751,-1278.33,0.00055068,120]
[321427142,1712182308760,-500.0,0.00055068,120]
[321427143,1712182308770,-784.86,0.00055068,120]
[321427144,1712182308779,-1519.81,0.00055068,120]
[321427145,1712182308788,-2073.31,0.00055068,120]
[321427146,1712182308798,-500.0,0.00055068,120]
[321427147,1712182308808,-942.86,0.00055068,120]
[321427148,1712182308817,-1007.19781613,0.00055068,14]
[321427149,1712182308826,-3687.58,0.00055068,120]
[321427150,1712182308835,-6016.54,0.00055068,120]
[321427151,1712182308845,-615.89808607,0.00055068,120]
[321427152,1712182308854,-963.82,0.00055068,120]
[321427153,1712182308864,-4806.56,0.00055068,120]
[321427154,1712182308873,-500.0,0.00055068,120]
[321427155,1712182308882,-512.10008252,0.00055068,120]
[321427156,1712182308891,-990.77,0.00055068,120]
[321427157,1712182308901,-1225.81,0.00055068,120]
[321427158,1712182308910,-500.0,0.00055068,120]
[321427159,1712182308919,-1816.51,0.00055068,120]
[321427160,1712182308928,-519.08512719,0.00055068,120]
[321427161,1712182308937,-500.0,0.00055068,120]
[321427162,1712182308948,-2998.67,0.00055068,120]
[321427163,1712182308957,-500.0,0.00055068,120]
[321427164,1712182308966,-528.3,0.00055068,120]
[321427165,1712182308975,-2368.29,0.00055068,120]
[321427166,1712182308984,-500.0,0.00055068,120]
[321427167,1712182308993,-7192.17,0.00055068,120]
[321427168,1712182309003,-7428.5,0.00055068,120]
[321427169,1712182309012,-2801.0,0.00055068,120]
[321427170,1712182309021,-2726.28,0.00055068,120]
[321427171,1712182309030,-844.09,0.00055068,120]
[321427172,1712182309039,-3041.57,0.00055068,120]
[321427173,1712182309048,-517.02814557,0.00055068,120]
[321427174,1712182309057,-500.0,0.00055068,120]
[321427175,1712182309066,-500.0,0.00055068,120]
[321427176,1712182309075,-514.90863681,0.00055068,120]
[321427177,1712182309084,-1269.01,0.00055068,120]
[321427178,1712182309093,-500.0,0.00055068,120]
[321427179,1712182309102,-508.37727523,0.00055068,120]
[321427180,1712182309111,-18834.36,0.00055068,120]
[321427181,1712182309120,-1960.36,0.00055068,120]
[321427182,1712182309130,-507.71569604,0.00055068,120]
[321427183,1712182309139,-536.36742107,0.00055068,120]
[321427184,1712182309148,-1703.32,0.00055068,120]
[321427185,1712182309157,-500.0,0.00055068,120]
[321427186,1712182309166,-5651.64,0.00055068,120]
[321427187,1712182309175,-2587.56,0.00055068,120]
[321427188,1712182309184,-507.05271296,0.00055068,120]
[321427189,1712182309193,-500.0,0.00055068,120]
[321427190,1712182309205,-500.0,0.00055068,120]
[321427191,1712182309215,-500.0,0.00055068,120]
[321427192,1712182309224,-500.0,0.00055068,120]
[321427193,1712182309233,-2690.54,0.00055068,120]
[321427194,1712182309242,-500.0,0.00055068,120]
[321427195,1712182309251,-500.0,0.00055068,120]
[321427196,1712182309260,-514.3885178,0.00055068,120]
[321427197,1712182309270,-500.0,0.00055068,120]
[321427198,1712182309280,-500.0,0.00055068,120]
[321427199,1712182309808,-500.0,0.00055068,120]
[321427200,1712182309844,-594.67,0.00055068,120]
[321427201,1712182309864,-500.0,0.00055068,120]
[321427202,1712182309881,-2018.37,0.00055068,120]
[321427203,1712182309892,-1828.14,0.00055068,21]
[321427204,1712182309902,-500.0,0.00055068,120]
[321427205,1712182309911,-872.43,0.00055068,120]
[321427206,1712182309919,-500.0,0.00055068,120]
[321427207,1712182309930,-764.66,0.00055068,120]
[321427208,1712182309938,-3764.89,0.00055068,120]
[321427209,1712182309950,-1385.21,0.00055068,120]
[321427210,1712182309963,-2768.66,0.00055068,120]
[321427211,1712182309972,-5728.88,0.00055068,120]
[321427212,1712182309982,-1938.19,0.00055068,120]
[321427213,1712182309991,-500.0,0.00055068,120]
[321427214,1712182310001,-4469.47,0.00055068,120]
[321427215,1712182310011,-634.12,0.00055068,120]
[321427216,1712182310020,-731.15,0.00055068,120]
[321427217,1712182310030,-2123.24,0.00055068,120]
[321427218,1712182310039,-500.0,0.00055068,120]
[321427219,1712182310048,-500.0,0.00055068,120]
[321427220,1712182310058,-541.36421845,0.00055068,120]
[321427221,1712182310067,-1719.33,0.00055068,7]
[321427222,1712182310076,-500.0,0.00055068,120]
[321427223,1712182310085,-500.0,0.00055068,120]
[321427224,1712182310095,-2253.41,0.00055068,120]
[321427225,1712182310104,-729.33,0.00055068,120]
[321427226,1712182310114,-2117.98,0.00055068,120]
[321427227,1712182310123,-8698.46,0.00055068,120]
[321427228,1712182310133,-500.0,0.00055068,120]
[321427229,1712182310142,-500.0,0.00055068,120]
[321427230,1712182310152,-4924.96,0.00055068,120]
[321427231,1712182310161,-1332.76,0.00055068,120]
[321427232,1712182310171,-500.0,0.00055068,120]
[321427233,1712182310180,-3756.46,0.00055068,120]
[321427234,1712182310189,-500.0,0.00055068,2]
[321427235,1712182310200,-500.0,0.00055068,120]
[321427236,1712182310209,-458.23511898,0.00055068,120]
[321427237,1712182310218,-5000.0,0.00055068,120]
[321427238,1712182310228,-500.0,0.00055068,120]
[321427239,1712182310237,-1367.26,0.00055068,120]
[321427240,1712182310246,-527.65183041,0.00055068,120]
[321427241,1712182310255,-1037.04,0.00055068,120]
[321427242,1712182310264,-612.47402146,0.00055068,120]
[321427243,1712182310274,-500.0,0.00055068,120]
[321427244,1712182310283,-2123.79,0.00055068,120]
[321427245,1712182310292,-616.76,0.00055068,120]
[321427246,1712182310301,-500.0,0.00055068,120]
[321427247,1712182310311,-3300.85,0.00055068,120]
[321427248,1712182310320,-779.43,0.00055068,120]
[321427249,1712182310329,-507.77445465,0.00055068,120]
[321427250,1712182310338,-500.0,0.00055068,120]
[321427251,1712182310347,-500.0,0.00055068,120]
[321427252,1712182310356,-4377.13,0.00055068,120]
[321427253,1712182310365,-1708.51,0.00055068,120]
[321427254,1712182310374,-1102.91,0.00055068,120]
[321427255,1712182310383,-500.0,0.00055068,120]
[321427256,1712182310393,-1000.0,0.00055068,120]
[321427257,1712182310403,-500.0,0.00055068,120]
[321427258,1712182310412,-689.85,0.00055068,120]
[321427259,1712182310421,-500.0,0.00055068,120]
[321427260,1712182310430,-2700.2,0.00055068,120]
[321427261,1712182310440,-2417.36,0.00055068,120]
[321427262,1712182310449,-500.0,0.00055068,120]
[321427263,1712182310458,-500.0,0.00055068,120]
[321427264,1712182310467,-500.0,0.00055068,120]
[321427265,1712182310476,-688.82,0.00055068,120]
[321427266,1712182310485,-4108.23,0.00055068,120]
[321427267,1712182310495,-871.93,0.00055068,120]
[321427268,1712182310504,-1759.09,0.00055068,120]
[321427269,1712182310514,-1221.88,0.00055068,120]
[321427270,1712182310523,-585.62240459,0.00055068,120]
[321427271,1712182310534,-500.0,0.00055068,120]
[321427272,1712182310543,-500.0,0.00055068,120]
[321427273,1712182310553,-12173.89,0.00055068,120]
[321427274,1712182310562,-3860.65,0.00055068,120]
[321427275,1712182310571,-500.0,0.00055068,120]
[321427276,1712182310581,-664.94,0.00055068,120]
[321427277,1712182310590,-510.98471188,0.00055068,120]
[321427278,1712182310603,-500.0,0.00055068,120]
[321427279,1712182310612,-2714.19,0.00055068,120]
[321427280,1712182310622,-500.0,0.00055068,120]
[321427281,1712182310631,-500.0,0.00055068,120]
[321427282,1712182310641,-3736.26,0.00055068,120]
[321427283,1712182310651,-500.0,0.00055068,120]
[321427284,1712182310660,-500.0,0.00055068,120]
[321427285,1712182310670,-5068.01,0.00055068,120]
[321427286,1712182310681,-500.0,0.00055068,120]
[321427287,1712182310691,-2396.76,0.00055068,120]
[321427288,1712182310701,-500.0,0.00055068,120]
[321427289,1712182310710,-3260.72,0.00055068,120]
[321427290,1712182310720,-3118.27,0.00055068,120]
[321427291,1712182310729,-452.65942084,0.00055068,120]
[321427292,1712182310738,-1703.09,0.00055068,120]
[321427293,1712182310748,-1109.31,0.00055068,120]
[321427294,1712182310757,-500.0,0.00055068,120]
[321427295,1712182310767,-514.14663879,0.00055068,120]
[321427296,1712182310776,-2615.01,0.00055068,120]
[321427297,1712182310786,-500.0,0.00055068,120]
[321427298,1712182310795,-503.43285261,0.00055068,120]
[321427299,1712182310804,-500.0,0.00055068,120]
[321427300,1712182310814,-500.0,0.00055068,120]
[321427301,1712182310823,-500.0,0.00055068,120]
[321427302,1712182310832,-2132.97,0.00055068,120]
[321427303,1712182310842,-2932.33,0.00055068,120]
[321427304,1712182310851,-500.0,0.00055068,120]
[321427305,1712182310860,-500.0,0.00055068,120]
[321427306,1712182310870,-500.0,0.00055068,120]
[321427307,1712182310880,-500.0,0.00055068,120]
[321427308,1712182310890,-500.0,0.00055068,120]
[321427309,1712182310900,-3267.54,0.00055068,120]
[321427310,1712182310909,-500.0,0.00055068,2]
[321427311,1712182310919,-508.93321283,0.00055068,120]
[321427312,1712182310929,-500.0,0.00055068,120]
[321427313,1712182310939,-2295.65,0.00055068,120]
[321427314,1712182310948,-511.16902316,0.00055068,120]
[321427315,1712182310958,-4811.26,0.00055068,120]
[321427316,1712182310967,-507.22404541,0.00055068,120]
[321427317,1712182310977,-569.97,0.00055068,120]
[321427318,1712182310987,-509.05729146,0.00055068,120]
[321427319,1712182310996,-1121.83,0.00055068,120]
[321427320,1712182311005,-500.0,0.00055068,120]
[321427321,1712182311015,-5557.68,0.00055068,120]
[321427322,1712182311024,-960.97,0.00055068,120]
[321427323,1712182311033,-500.0,0.00055068,120]
[321427324,1712182311042,-2998.29,0.00055068,120]
[321427325,1712182311052,-1978.76,0.00055068,120]
[321427326,1712182311061,-4668.01,0.00055068,120]
[321427327,1712182311071,-3123.66,0.00055068,120]
[321427328,1712182311080,-511.41582246,0.00055068,120]
[321427329,1712182311090,-2725.96,0.00055068,120]
[321427330,1712182311100,-1215.44,0.00055068,120]
[321427331,1712182311110,-500.0,0.00055068,120]
[321427332,1712182311119,-1020.9,0.00055068,120]
[321427333,1712182311128,-1754.37,0.00055068,120]
[321427334,1712182311138,-472.76347994,0.00055068,120]
[321427335,1712182311147,-500.0,0.00055068,120]
[321427336,1712182311156,-8574.73,0.00055068,120]
[321427337,1712182311166,-500.0,0.00055068,120]
[321427338,1712182311175,-500.0,0.00055068,120]
[321427339,1712182311185,-500.0,0.00055068,2]
[321427340,1712182311194,-520.12048537,0.00055068,120]
[321427341,1712182311205,-1714.24,0.00055068,120]
[321427342,1712182311214,-500.0,0.00055068,120]
[321427343,1712182311223,-984.67,0.00055068,120]
[321427344,1712182311233,-2219.69,0.00055068,120]
[321427345,1712182311242,-3615.88,0.00055068,120]
[321427346,1712182311252,-500.0,0.00055068,120]
[321427347,1712182311261,-500.0,0.00055068,120]
[321427348,1712182311270,-949.53,0.00055068,120]
[321427349,1712182311280,-514.46,0.00055068,120]
[321427350,1712182311289,-374.62451444,0.00055068,2]
[321427351,1712182311299,-500.0,0.00055068,120]
[321427352,1712182311308,-1000.0,0.00055099,120]
[321427353,1712182311318,-611.49,0.00055164,120]
[321427354,1712182311327,-500.0,0.00055205,120]
[321427355,1712182311338,-1000.0,0.00055251,120]
[321427356,1712182311347,-456.82,0.00055281,120]
[321427357,1712182311357,-1042.88,0.00055315,120]
[321427358,1712182311366,-370.28479822,0.00055342,30]
[321427359,1712182311375,-500.0,0.00055342,120]
[321427360,1712182311384,-272.88295447,0.00055342,120]
[321427361,1712182311394,-500.0,0.00055342,120]
[321427362,1712182311403,-349.24577568,0.00055342,120]
[321427363,1712182311413,-500.0,0.00055342,120]
[321427364,1712182311423,-510.77434208,0.00055342,120]
[321427365,1712182311432,-500.0,0.00055342,120]
[321427366,1712182311442,-500.0,0.00055342,120]
[321427367,1712182311452,-500.0,0.00055342,120]
[321427368,1712182311461,-472.23941958,0.00055342,120]
[321427369,1712182311471,-325.68803425,0.00055342,120]
[321427370,1712182311481,-500.0,0.00055342,120]
[321427371,1712182311490,-500.0,0.00055342,120]
[321427372,1712182311500,-473.45819583,0.00055342,120]
[321427373,1712182311509,-500.0,0.00055342,120]
[321427374,1712182311519,-735.78,0.00055342,120]
[321427375,1712182311528,-791.38,0.00055342,120]
[321427376,1712182311538,-500.0,0.00055342,120]
[321427377,1712182311547,-511.41210005,0.00055342,120]
[321427378,1712182311556,-973.42,0.00055342,120]
[321427379,1712182311566,-512.11460839,0.00055342,120]
[321427380,1712182311575,-500.0,0.00055342,2]
[321427381,1712182311585,-574.05,0.00055342,120]
[321427382,1712182311595,-500.0,0.00055342,120]
[321427383,1712182311607,-538.27762372,0.00055342,120]
[321427384,1712182311617,-704.16,0.00055342,120]
[321427385,1712182311627,-500.0,0.00055342,120]
[321427386,1712182311637,-511.24910097,0.00055342,120]
[321427387,1712182311646,-500.0,0.00055342,120]
[321427388,1712182311655,-500.0,0.00055342,120]
[321427389,1712182311665,-500.0,0.00055342,120]
[321427390,1712182311675,-511.39108266,0.00055342,120]
[321427391,1712182311686,-683.55,0.00055342,120]
[321427392,1712182311696,-500.0,0.00055342,120]
[321427393,1712182311706,-611.88,0.00055342,120]